fUSD/lending_fUSD_20250112
["ID","MTS","AMOUNT","RATE_DAILY","PERIOD"]
[348612157,1736673043602,-500.0,0.0001021,2]
[348612159,1736673043613,-500.0,0.0001021,2]
[348612160,1736673043624,-500.0,0.0001021,2]
[348612162,1736673043633,-500.0,0.0001021,2]
[348612164,1736673043643,-778.58,0.0001021,2]
[348612166,1736673043652,-744.06,0.0001021,2]
[348612168,1736673043662,-500.0,0.0001021,2]
[348612170,1736673043671,-500.0,0.0001021,2]
[348612172,1736673043682,-503.08002305,0.0001021,2]
[348612174,1736673043691,-500.0,0.0001021,2]
[348612176,1736673043700,-500.0,0.0001021,2]
[348612178,1736673043710,-500.0,0.0001021,2]
[348612180,1736673043719,-502.63762665,0.0001021,2]
[348612182,1736673043728,-816.02,0.0001021,2]
[348612184,1736673043739,-500.0,0.0001021,2]
[348612186,1736673043749,-502.89445788,0.0001021,2]
[348612188,1736673043758,-500.0,0.0001021,2]
[348612190,1736673043768,-500.0,0.0001021,2]
[348612192,1736673043777,-500.0,0.0001021,2]
[348612194,1736673043786,-595.28,0.0001021,2]
[348612196,1736673043795,-500.0,0.0001021,2]
[348612198,1736673043804,-505.75373351,0.0001021,2]
[348612200,1736673043814,-500.0,0.0001021,2]
[348612202,1736673043823,-500.0,0.0001021,2]
[348612204,1736673043833,-500.0,0.0001021,2]
[348612206,1736673043842,-500.0,0.0001021,2]
[348612208,1736673043852,-506.44098732,0.0001021,2]
[348612210,1736673043862,-500.0,0.0001021,2]
[348612212,1736673043871,-500.0,0.0001021,2]
[348612214,1736673043881,-500.0,0.0001021,2]
[348612216,1736673043890,-500.0,0.0001021,2]
[348612218,1736673043899,-500.0,0.0001021,2]
[348612220,1736673043909,-500.0,0.0001021,2]
[348612222,1736673043918,-500.0,0.0001021,2]
[348612224,1736673043928,-852.9,0.0001021,2]
[348612227,1736673043937,-500.0,0.0001021,2]
[348612228,1736673043947,-500.0,0.0001021,2]
[348612231,1736673043957,-500.0,0.0001021,2]
[348612232,1736673043966,-500.0,0.0001021,2]
[348612235,1736673043976,-500.0,0.0001021,2]
[348612236,1736673043985,-500.0,0.0001021,2]
[348612238,1736673043995,-500.0,0.0001021,2]
[348612240,1736673044004,-500.0,0.0001021,2]
[348612242,1736673044013,-500.0,0.0001021,2]
[348612244,1736673044023,-500.0,0.0001021,2]
[348612247,1736673044033,-500.0,0.0001021,2]
[348612248,1736673044042,-134.04874802,0.0001021,2]
[348612251,1736673044059,-365.95125198,0.0001021,2]
[348612253,1736673044069,-303.61337613,0.0001021,2]
[348612255,1736673044078,-500.0,0.0001021,2]
[348612257,1736673044087,-667.4,0.0001021,2]
[348612259,1736673044097,-500.0,0.0001021,2]
[348612261,1736673044106,-657.12,0.0001021,2]
[348612263,1736673044116,-500.0,0.0001021,2]
[348612265,1736673044125,-500.0,0.0001021,2]
[348612267,1736673044135,-720.03,0.0001021,2]
[348612269,1736673044145,-569.96,0.0001021,2]
[348612272,1736673044154,-500.0,0.0001021,2]
[348612274,1736673044164,-665.5,0.0001021,2]
[348612275,1736673044173,-500.0,0.0001021,2]
[348612278,1736673044182,-500.0,0.0001021,2]
[348612280,1736673044191,-584.07,0.0001021,2]
[348612282,1736673044200,-564.31,0.0001021,2]
[348612284,1736673044210,-458.17356263,0.0001021,2]
[348612286,1736673044223,-41.82643737,0.0001021,2]
[348612288,1736673044233,-692.13,0.0001021,2]
[348612290,1736673044243,-500.0,0.0001021,2]
[348612292,1736673044252,-500.0,0.0001021,2]
[348612294,1736673044261,-500.0,0.0001021,2]
[348612296,1736673044271,-552.92,0.0001021,2]
[348612298,1736673044280,-515.79,0.0001021,2]
[348612300,1736673044290,-547.83067633,0.0001021,2]
[348612302,1736673044299,-1230.44,0.0001021,2]
[348612304,1736673044309,-616.43,0.0001021,2]
[348612306,1736673044318,-500.0,0.0001021,2]
[348612308,1736673044327,-500.0,0.0001021,2]
[348612310,1736673044336,-500.0,0.0001021,2]
[348612312,1736673044346,-500.0,0.0001021,2]
[348612314,1736673044355,-500.0,0.0001021,2]
[348612316,1736673044364,-500.0,0.0001021,2]
[348612318,1736673044374,-500.0,0.0001021,2]
[348612320,1736673044383,-533.14,0.0001021,2]
[348612322,1736673044392,-500.0,0.0001021,2]
[348612324,1736673044401,-781.03,0.0001021,2]
[348612337,1736673044562,-3927.56,0.0001021,2]
[348612338,1736673044572,-500.0,0.0001021,2]
[348612339,1736673044581,-500.0,0.0001021,2]
[348612340,1736673044591,-500.0,0.0001021,2]
[348612342,1736673044600,-793.99,0.0001021,2]
[348612344,1736673044610,-500.0,0.0001021,2]
[348612346,1736673044623,-500.0,0.0001021,2]
[348612348,1736673044633,-500.0,0.0001021,2]
[348612350,1736673044642,-500.0,0.0001021,2]
[348612352,1736673044651,-836.81,0.0001021,2]
[348612354,1736673044663,-2489.55,0.0001021,2]
[348612356,1736673044672,-587.03,0.0001021,2]
[348612358,1736673044682,-577.88,0.0001021,2]
[348612360,1736673044692,-500.0,0.0001021,2]
[348612362,1736673044702,-500.0,0.0001021,2]
[348612364,1736673044711,-3020.4,0.0001021,2]
[348612366,1736673044720,-500.0,0.0001021,2]
[348612368,1736673044731,-500.0,0.0001021,2]
[348612370,1736673044740,-500.0,0.0001021,2]
[348612372,1736673044750,-500.87884689,0.0001021,2]
[348612374,1736673044759,-500.0,0.0001021,2]
[348612376,1736673044769,-518.81568779,0.0001021,2]
[348612378,1736673044778,-500.0,0.0001021,2]
[348612380,1736673044788,-500.0,0.0001021,2]
[348612382,1736673044798,-500.0,0.0001021,2]
[348612384,1736673044807,-500.0,0.0001021,2]
[348612386,1736673044817,-500.0,0.0001021,2]
[348612388,1736673044826,-687.34,0.0001021,2]
[348612390,1736673044836,-528.11,0.0001021,2]
[348612392,1736673044845,-374.81645499,0.0001021,2]
[348612394,1736673044855,-500.0,0.0001021,2]
[348612396,1736673044864,-500.0,0.0001021,2]
[348612398,1736673044873,-500.0,0.0001021,2]
[348612400,1736673044883,-500.0,0.0001021,2]
[348612402,1736673044892,-500.0,0.0001021,2]
[348612404,1736673044902,-500.0,0.0001021,2]
[348612406,1736673044911,-740.57,0.0001021,2]
[348612408,1736673044921,-500.0,0.0001021,2]
[348612410,1736673044930,-353.22649716,0.0001021,2]
[348612412,1736673044942,-146.77350284,0.0001021,2]
[348612415,1736673044952,-500.0,0.0001021,2]
[348612416,1736673044961,-500.0,0.0001021,2]
[348612419,1736673044972,-500.0,0.0001021,2]
[348612421,1736673044981,-500.0,0.0001021,2]
[348612422,1736673044990,-504.43435593,0.0001021,2]
[348612425,1736673045000,-500.0,0.0001021,2]
[348612427,1736673045010,-500.0,0.0001021,2]
[348612428,1736673045019,-500.0,0.0001021,2]
[348612431,1736673045029,-1000.0,0.00010256,2]
[348612433,1736673045038,-1534.47429526,0.00010261,2]
[348612435,1736673045047,-151.86351427,0.00010266,2]
[348612437,1736673045056,-215.72,0.00010271,2]
[348612439,1736673045066,-227.29,0.00010271,2]
[348612440,1736673045075,-351.87,0.00010271,2]
[348612442,1736673045085,-500.0,0.00010271,2]
[348612444,1736673045095,-500.0,0.00010271,2]
[348612445,1736673045104,-500.0,0.00010271,2]
[348612446,1736673045114,-642.5,0.00010271,2]
[348612447,1736673045123,-500.0,0.00010271,2]
[348612448,1736673045133,-500.0,0.00010271,2]
[348612449,1736673045143,-500.0,0.00010271,2]
[348612450,1736673045152,-500.0,0.00010271,2]
[348612451,1736673045162,-500.0,0.00010271,2]
[348612452,1736673045171,-506.97,0.00010271,2]
[348612453,1736673045181,-770.11,0.00010271,2]
[348612454,1736673045190,-500.0,0.00010271,2]
[348612455,1736673045200,-797.77,0.00010271,2]
[348612456,1736673045209,-543.28430432,0.00010271,2]
[348612457,1736673045221,-116.84569568,0.00010271,2]
[348612458,1736673045231,-504.14,0.00010271,2]
[348612459,1736673045240,-563.31,0.00010271,2]
[348612460,1736673045250,-654.9,0.00010271,2]
[348612461,1736673045259,-500.0,0.00010271,2]
[348612462,1736673045268,-500.0,0.00010271,2]
[348612463,1736673045278,-658.26,0.00010271,2]
[348612464,1736673045287,-500.0,0.00010271,2]
[348612465,1736673045297,-500.0,0.00010271,2]
[348612466,1736673045306,-530.72,0.00010271,2]
[348612467,1736673045316,-532.06,0.00010271,2]
[348612468,1736673045325,-409.76430432,0.00010271,2]
[348612469,1736673045337,-90.23569568,0.00010271,2]
[348612470,1736673045347,-500.0,0.00010271,2]
[348612471,1736673045356,-631.03,0.00010271,2]
[348612472,1736673045366,-469.19339731,0.00010271,2]
[348612473,1736673045377,-30.80660269,0.00010271,2]
[348612474,1736673045386,-500.0,0.00010271,2]
[348612475,1736673045395,-440.31730905,0.00010271,2]
[348612476,1736673045879,-495.49838774,9.998e-05,2]
[348612477,1736673045891,-4.50161226,9.998e-05,2]
[348612478,1736673045899,-442.42964511,0.0001021,2]
[348612479,1736673045913,-80.05915709,0.0001021,2]
[348612480,1736673045923,-59.68269095,0.00010271,2]
[348612481,1736673045934,-602.49,0.00010271,2]
[348612482,1736673045943,-246.40881306,0.00010271,2]
[348612486,1736673046311,-183.17,9.353e-05,2]
[348612487,1736673046322,-500.0,9.997e-05,2]
[348612488,1736673046332,-500.0,0.0001021,2]
[348612489,1736673046341,-253.59118694,0.00010271,2]
[348612490,1736673046351,-614.88,0.00010271,2]
[348612491,1736673046360,-500.0,0.00010271,2]
[348612492,1736673046370,-607.07,0.00010271,2]
[348612493,1736673046379,-500.0,0.00010271,2]
[348612494,1736673046391,-715.19,0.00010271,2]
[348612495,1736673046399,-799.32,0.00010271,2]
[348612496,1736673046410,-642.28,0.00010271,2]
[348612497,1736673046420,-500.0,0.00010271,2]
[348612498,1736673046431,-500.0,0.00010271,2]
[348612499,1736673046440,-155.98449643,0.00010271,2]
[348612500,1736673046466,-344.01550357,0.00010271,2]
[348612501,1736673046475,-500.0,0.00010271,2]
[348612502,1736673046484,-500.0,0.00010271,2]
[348612503,1736673046494,-901.38,0.00010271,2]
[348612504,1736673046503,-500.0,0.00010271,2]
[348612505,1736673046515,-891.66,0.00010271,2]
[348612506,1736673046525,-869.64,0.00010271,2]
[348612507,1736673046534,-500.0,0.00010271,2]
[348612508,1736673046543,-513.88,0.00010271,2]
[348612509,1736673046552,-500.0,0.00010271,2]
[348612510,1736673046561,-500.0,0.00010271,2]
[348612511,1736673046571,-500.0,0.00010271,2]
[348612512,1736673046581,-523.59,0.00010271,2]
[348612513,1736673046591,-500.0,0.00010271,2]
[348612514,1736673046600,-500.0,0.00010271,2]
[348612515,1736673046609,-500.0,0.00010271,2]
[348612516,1736673046623,-500.0,0.00010271,2]
[348612517,1736673046632,-626.48,0.00010271,2]
[348612518,1736673046642,-500.0,0.00010271,2]
[348612519,1736673046651,-500.0,0.00010271,2]
[348612520,1736673046663,-500.0,0.00010271,2]
[348612521,1736673046672,-596.59,0.00010271,2]
[348612522,1736673046684,-500.0,0.00010271,2]
[348612523,1736673046696,-625.45,0.00010271,2]
[348612524,1736673046705,-873.43,0.00010271,2]
[348612525,1736673046714,-500.0,0.00010271,2]
[348612526,1736673046725,-500.0,0.00010272,2]
[348612527,1736673046735,-2864.15,0.00010272,2]
[348612528,1736673046744,-912.7,0.00010272,2]
[348612529,1736673046754,-595.33,0.00010272,2]
[348612530,1736673046763,-500.0,0.00010272,2]
[348612531,1736673046772,-961.73,0.00010272,2]
[348612532,1736673046781,-500.0,0.00010272,2]
[348612533,1736673046791,-500.0,0.00010272,2]
[348612534,1736673046800,-889.38,0.00010272,2]
[348612535,1736673046809,-1211.43,0.00010272,2]
[348612536,1736673046863,-500.0,0.00010272,2]
[348612537,1736673046873,-500.0,0.00010272,2]
[348612538,1736673046882,-500.0,0.00010272,2]
[348612539,1736673046891,-500.0,0.00010272,2]
[348612540,1736673046900,-735.77,0.00010272,2]
[348612541,1736673046909,-500.0,0.00010272,2]
[348612542,1736673046919,-500.0,0.00010272,2]
[348612543,1736673046928,-500.0,0.00010272,2]
[348612544,1736673046937,-1836.38,0.00010272,2]
[348612545,1736673046947,-500.0,0.00010272,2]
[348612546,1736673046957,-500.0,0.00010272,2]
[348612547,1736673046966,-500.0,0.00010272,2]
[348612548,1736673046975,-1084.68,0.00010272,2]
[348612549,1736673046984,-500.0,0.00010272,2]
[348612550,1736673046993,-500.0,0.00010272,2]
[348612551,1736673047002,-2139.68,0.00010272,2]
[348612552,1736673047012,-500.0,0.00010272,2]
[348612553,1736673047021,-500.0,0.00010272,2]
[348612554,1736673047030,-500.0,0.00010272,2]
[348612555,1736673047040,-330.77715805,0.00010272,2]
[348612556,1736673047049,-628.2888686,0.00010272,2]
[348612557,1736673047058,-500.0,0.00010272,2]
[348612558,1736673047067,-500.0,0.00010272,2]
[348612559,1736673047077,-500.0,0.00010272,2]
[348612560,1736673047088,-1264.74,0.00010272,2]
[348612561,1736673047098,-500.0,0.00010272,2]
[348612562,1736673047107,-500.0,0.00010272,2]
[348612563,1736673047116,-500.0,0.00010272,2]
[348612564,1736673047126,-500.0,0.00010272,2]
[348612565,1736673047135,-500.0,0.00010272,2]
[348612566,1736673047145,-3243.62,0.00010272,2]
[348612567,1736673047157,-500.0,0.00010272,2]
[348612568,1736673047166,-500.0,0.00010272,2]
[348612569,1736673047177,-500.0,0.00010272,2]
[348612570,1736673047186,-500.0,0.00010272,2]
[348612571,1736673047195,-500.0,0.00010272,2]
[348612572,1736673047205,-500.0,0.00010272,2]
[348612573,1736673047214,-500.0,0.00010272,2]
[348612574,1736673047223,-500.0,0.00010272,2]
[348612575,1736673047231,-500.0,0.00010272,2]
[348612576,1736673047240,-500.0,0.00010272,2]
[348612577,1736673047249,-948.39,0.00010272,2]
[348612578,1736673047258,-872.03,0.00010272,2]
[348612579,1736673047267,-500.0,0.00010272,2]
[348612580,1736673047276,-500.0,0.00010272,2]
[348612581,1736673047285,-932.92,0.00010272,2]
[348612582,1736673047294,-1048.07,0.00010272,2]
[348612583,1736673047303,-2270.63,0.00010272,2]
[348612584,1736673047311,-1183.29,0.00010272,2]
[348612585,1736673047320,-7141.81,0.00010272,2]
[348612586,1736673047330,-500.0,0.00010272,2]
[348612587,1736673047339,-719.05,0.00010272,2]
[348612588,1736673047349,-1025.8,0.00010272,2]
[348612589,1736673047358,-500.0,0.00010272,2]
[348612590,1736673047367,-1874.48,0.00010272,2]
[348612591,1736673047376,-1219.43,0.00010272,2]
[348612592,1736673047385,-1847.2,0.00010272,2]
[348612593,1736673047394,-1110.6,0.00010272,2]
[348612594,1736673047403,-500.0,0.00010272,2]
[348612595,1736673047412,-2874.37,0.00010272,2]
[348612596,1736673047421,-865.42,0.00010272,2]
[348612597,1736673047430,-1673.13,0.00010272,2]
[348612598,1736673047438,-1666.35,0.00010272,2]
[348612599,1736673047448,-500.0,0.00010272,2]
[348612600,1736673047457,-1140.66,0.00010272,2]
[348612601,1736673047466,-1158.31,0.00010272,2]
[348612602,1736673047475,-882.29,0.00010272,2]
[348612603,1736673047484,-2838.19,0.00010272,2]
[348612604,1736673047493,-500.0,0.00010272,2]
[348612605,1736673047502,-760.85,0.00010272,2]
[348612606,1736673047511,-500.0,0.00010272,2]
[348612607,1736673047520,-500.0,0.00010272,2]
[348612608,1736673047529,-793.01,0.00010272,2]
[348612609,1736673047538,-1737.34,0.00010272,2]
[348612610,1736673047547,-500.0,0.00010272,2]
[348612611,1736673047556,-1001.37,0.00010272,2]
[348612612,1736673047566,-500.0,0.00010272,2]
[348612613,1736673047575,-1524.88,0.00010272,2]
[348612614,1736673047583,-1439.6,0.00010272,2]
[348612615,1736673047592,-500.0,0.00010272,2]
[348612616,1736673047601,-1365.41,0.00010272,2]
[348612617,1736673047610,-1328.02,0.00010272,2]
[348612618,1736673047623,-715.91,0.00010272,2]
[348612619,1736673047631,-1275.57,0.00010272,2]
[348612620,1736673047640,-1776.91,0.00010272,2]
[348612621,1736673047649,-1832.55,0.00010272,2]
[348612622,1736673047658,-960.36,0.00010272,2]
[348612623,1736673047667,-500.0,0.00010273,2]
[348612624,1736673047676,-717.06,0.00010273,2]
[348612625,1736673047686,-500.0,0.00010273,2]
[348612626,1736673047695,-500.0,0.00010273,2]
[348612627,1736673047704,-500.0,0.00010273,2]
[348612628,1736673047713,-500.0,0.00010273,2]
[348612629,1736673047722,-840.92,0.00010273,2]
[348612630,1736673047731,-500.0,0.00010273,2]
[348612631,1736673047740,-781.26,0.00010273,2]
[348612632,1736673047749,-500.0,0.00010273,2]
[348612633,1736673047758,-855.97,0.00010273,2]
[348612634,1736673047767,-500.0,0.00010273,2]
[348612635,1736673047776,-500.0,0.00010273,2]
[348612636,1736673047785,-594.78,0.00010273,2]
[348612637,1736673047794,-500.0,0.00010273,2]
[348612638,1736673047803,-500.0,0.00010273,2]
[348612639,1736673047812,-500.0,0.00010273,2]
[348612640,1736673047822,-3143.68,0.00010273,2]
[348612641,1736673047831,-906.65,0.00010273,2]
[348612642,1736673047839,-1560.82,0.00010273,2]
[348612643,1736673047849,-500.0,0.00010273,2]
[348612644,1736673047858,-1099.49,0.00010273,2]
[348612645,1736673047867,-2037.04,0.00010273,2]
[348612646,1736673047876,-712.87,0.00010273,2]
[348612647,1736673047885,-1291.51,0.00010273,2]
[348612648,1736673047894,-1099.31,0.00010273,2]
[348612649,1736673047903,-1388.38,0.00010273,2]
[348612650,1736673047912,-1268.99,0.00010273,2]
[348612651,1736673047922,-500.0,0.00010273,2]
[348612652,1736673047931,-731.92,0.00010273,2]
[348612653,1736673047941,-1353.06,0.00010273,2]
[348612654,1736673047951,-1755.7,0.00010273,2]
[348612655,1736673047960,-1972.86,0.00010273,2]
[348612656,1736673047969,-5560.92,0.00010273,2]
[348612657,1736673047978,-674.58,0.00010273,2]
[348612658,1736673047987,-740.12,0.00010273,2]
[348612659,1736673047996,-592.29,0.00010273,2]
[348612660,1736673048005,-910.84,0.00010273,2]
[348612661,1736673048015,-150.0,0.00010309,2]
[348612662,1736673048024,-1534.47429526,0.00010312,2]
[348612663,1736673048033,-912.74181643,0.00010336,2]
[348612664,1736673048042,-652.95,0.00010362,2]
[348612665,1736673048051,-688.16,0.00010362,2]
[348612666,1736673048061,-2135.85,0.00010362,2]
[348612667,1736673048070,-500.0,0.00010362,2]
[348612668,1736673048079,-724.38,0.00010362,2]
[348612669,1736673048088,-1478.84,0.00010363,2]
[348612670,1736673048098,-500.0,0.00010363,2]
[348612671,1736673048107,-500.0,0.00010363,2]
[348612672,1736673048116,-1000.0,0.00010363,2]
[348612673,1736673048125,-775.04,0.00010363,2]
[348612674,1736673048135,-500.0,0.00010363,2]
[348612675,1736673048144,-2041.92,0.00010363,2]
[348612676,1736673048153,-1693.44,0.00010363,2]
[348612677,1736673048162,-998.5,0.00010363,2]
[348612678,1736673048172,-1534.47429526,0.00010364,2]
[348612679,1736673048181,-907.52,0.00010384,2]
[348612680,1736673048190,-437.93,0.00010384,2]
[348612681,1736673048199,-437.93,0.00010384,2]
[348612682,1736673048208,-437.93,0.00010384,2]
[348612683,1736673048217,-437.93,0.00010384,2]
[348612684,1736673048226,-182.89,0.00010384,2]
[348612685,1736673048235,-1534.47429526,0.00010416,2]
[348612686,1736673048244,-1028.85,0.00010433,2]
[348612687,1736673048254,-151.86351427,0.0001045,2]
[348612688,1736673048263,-1534.47429526,0.00010468,2]
[348612689,1736673048272,-500.0,0.00010484,2]
[348612690,1736673048281,-500.0,0.00010484,2]
[348612691,1736673048290,-849.35,0.00010484,2]
[348612692,1736673048299,-500.0,0.00010484,2]
[348612693,1736673048308,-392.2733493,0.00010484,2]
[348612694,1736673048317,-500.0,0.00010484,2]
[348612695,1736673048326,-500.0,0.00010484,2]
[348612696,1736673048335,-500.0,0.00010484,2]
[348612697,1736673048344,-616.16,0.00010484,2]
[348612698,1736673048354,-500.0,0.00010484,2]
[348612699,1736673048362,-500.0,0.00010484,2]
[348612700,1736673048371,-501.79745958,0.00010484,2]
[348612701,1736673048380,-500.0,0.00010484,2]
[348612702,1736673048389,-1005.61,0.00010484,2]
[348612703,1736673048399,-500.0,0.00010484,2]
[348612704,1736673048407,-666.0,0.00010484,2]
[348612705,1736673048416,-595.05,0.00010484,2]
[348612706,1736673048425,-737.75,0.00010484,2]
[348612707,1736673048434,-509.42,0.00010484,2]
[348612708,1736673048443,-500.0,0.00010484,2]
[348612709,1736673048453,-500.0,0.00010484,2]
[348612710,1736673048463,-500.0,0.00010484,2]
[348612711,1736673048472,-500.0,0.00010484,2]
[348612712,1736673048481,-500.0,0.00010484,2]
[348612713,1736673048490,-500.0,0.00010484,2]
[348612714,1736673048499,-500.0,0.00010484,2]
[348612715,1736673048508,-500.0,0.00010484,2]
[348612716,1736673048517,-613.84,0.00010484,2]
[348612717,1736673048526,-500.0,0.00010484,2]
[348612718,1736673048535,-500.0,0.00010484,2]
[348612719,1736673048545,-500.0,0.00010484,2]
[348612720,1736673048554,-500.0,0.00010484,2]
[348612721,1736673048563,-793.2,0.00010484,2]
[348612722,1736673048572,-747.96,0.00010484,2]
[348612723,1736673048582,-500.0,0.00010484,2]
[348612724,1736673048592,-690.65,0.00010484,2]
[348612725,1736673048601,-500.0,0.00010484,2]
[348612726,1736673048612,-500.0,0.00010484,2]
[348612727,1736673048625,-500.0,0.00010484,2]
[348612728,1736673048635,-500.0,0.00010484,2]
[348612729,1736673048644,-500.0,0.00010484,2]
[348612730,1736673048655,-611.63,0.00010484,2]
[348612731,1736673048665,-500.0,0.00010484,2]
[348612732,1736673048675,-500.0,0.00010484,2]
[348612733,1736673048685,-500.0,0.00010484,2]
[348612734,1736673048697,-500.0,0.00010484,2]
[348612735,1736673048707,-500.0,0.00010484,2]
[348612736,1736673048716,-500.0,0.00010484,2]
[348612737,1736673048726,-850.01,0.00010484,2]
[348612738,1736673048735,-500.0,0.00010484,2]
[348612739,1736673048745,-500.0,0.00010484,2]
[348612740,1736673048755,-500.0,0.00010484,2]
[348612741,1736673048764,-500.0,0.00010484,2]
[348612742,1736673048774,-586.48,0.00010484,2]
[348612743,1736673048783,-500.0,0.00010484,2]
[348612744,1736673048793,-500.0,0.00010484,2]
[348612745,1736673048802,-500.0,0.00010484,2]
[348612746,1736673048813,-500.0,0.00010484,2]
[348612747,1736673048823,-726.14910443,0.00010484,2]
[348612748,1736673048839,-52.43089557,0.00010484,2]
[348612749,1736673048848,-744.06,0.00010484,2]
[348612750,1736673048858,-500.0,0.00010484,2]
[348612751,1736673048867,-328.8540489,0.00010484,2]
[348612752,1736673048879,-171.1459511,0.00010484,2]
[348612753,1736673048889,-500.0,0.00010484,2]
[348612754,1736673048898,-407.8740489,0.00010484,2]
[348612755,1736673048918,-590.06108821,0.0001021,2]
[348612756,1736673049423,-264.21431984,9.998e-05,2]
[348612757,1736673049435,-235.78568016,9.998e-05,2]
[348612758,1736673049444,-6.37891179,0.0001021,2]
[348612759,1736673049454,-221.3313749,0.0001021,2]
[348612760,1736673049466,-324.95834368,0.0001021,2]
[348612761,1736673049582,-184.44028142,0.0001021,2]
[348612762,1736673049592,-500.0,0.0001021,2]
[348612763,1736673049601,-500.0,0.00010272,2]
[348612764,1736673049612,-118.73665051,0.00010484,2]
[348612765,1736673049626,-289.40930059,0.00010484,2]
[348612766,1736673049636,-500.0,0.00010484,2]
[348612767,1736673049647,-500.0,0.00010484,2]
[348612768,1736673049659,-595.28,0.00010484,2]
[348612769,1736673049669,-164.58778176,0.00010484,2]
[348612770,1736673049683,-335.41221824,0.00010484,2]
[348612771,1736673049696,-266.58778176,0.00010484,2]
[348612772,1736673049714,-233.41221824,0.00010484,2]
[348612773,1736673049724,-500.0,0.00010484,2]
[348612774,1736673049734,-500.0,0.00010484,2]
[348612775,1736673049746,-632.48793592,0.00010484,2]
[348612776,1736673049759,-220.41206408,0.00010484,2]
[348612777,1736673049770,-104.11213591,0.00010484,2]
[348612778,1736673049781,-395.88786409,0.00010484,2]
[348612779,1736673049792,-500.0,0.00010484,2]
[348612780,1736673049802,-500.0,0.00010484,2]
[348612781,1736673049811,-500.0,0.00010484,2]
[348612782,1736673049822,-500.0,0.00010484,2]
[348612783,1736673049831,-500.0,0.00010484,2]
[348612784,1736673049842,-500.0,0.00010484,2]
[348612785,1736673049852,-667.4,0.00010484,2]
[348612786,1736673049863,-500.0,0.00010484,2]
[348612787,1736673049874,-347.56252247,0.00010484,2]
[348612788,1736673049894,-309.55747753,0.00010484,2]
[348612789,1736673049903,-500.0,0.00010484,2]
[348612790,1736673049913,-132.22820263,0.00010484,2]
[348612791,1736673050014,-367.77179737,0.00010484,2]
[348612792,1736673050023,-132.22820263,0.00010484,2]
[348612972,1736673164139,979.5,8.219e-05,2]
[348612973,1736673192411,500.0,0.00022373,120]
[348612974,1736673195832,2000.0,0.00022532,120]
[348612975,1736673239016,200.0,0.00022373,120]
[348612978,1736673926750,402.15221761,0.0002,120]
[348613336,1736673956371,1922.65511046,0.00017,120]
[348613338,1736673978828,151.0,0.00023,120]
[348613339,1736673990780,150.0,0.00020602,120]
[348613341,1736674030388,837.40721248,0.0002,120]
[348613348,1736674121664,800.0,0.00021,120]
[348613349,1736674122151,152.78942741,0.0002,120]
[348613356,1736674170769,150.0,0.00020437,120]
[348613388,1736674232544,-214.3,9.18e-05,2]
[348613389,1736674232554,-250.0,9.184e-05,2]
[348613390,1736674232563,-883.38,9.261e-05,2]